bitfinex-derivatives/quotes_SOLF0:USTF0_20241216
["timestamp","ask_amount","ask_price","bid_price","bid_amount"]
[1734382343429,12.38110414,216.51,216.41,2.46]
[1734382343732,14.84110414,216.51,216.41,2.46]
[1734382344531,2.3091,216.46,216.41,4.7696]
[1734382345122,14.84110414,216.51,216.41,2.46]
[1734382345329,2.3091,216.45,216.41,2.46]
[1734382345730,2.309,216.46,216.41,2.46]
[1734382346228,14.84110414,216.51,216.41,7.9048539]
[1734382346935,2.3091,216.46,216.41,7.9048539]
[1734382347834,14.84110414,216.54,216.41,7.9048539]
[1734382348930,2.3085,216.51,216.46,2.309]
[1734382349234,12.38110414,216.54,216.42,1.6249]
[1734382349931,1.604,216.56,216.42,14.00600414]
[1734382350136,12.38110414,216.57,216.45,12.38110414]
[1734382350429,2.3082,216.54,216.46,2.46]
[1734382350628,12.38110414,216.57,216.45,12.38110414]
[1734382350935,12.38110414,216.57,216.46,4.7689]
[1734382351626,2.3085,216.52,216.46,4.7689]
[1734382353335,81.70906057,216.58,216.48,12.38110414]
[1734382353336,79.24906057,216.58,216.48,12.38110414]
[1734382353735,81.55686057,216.58,216.51,2.3085]
[1734382354039,79.24906057,216.58,216.49,2.46]
[1734382354334,2.3081,216.55,216.49,2.3086]
[1734382354534,12.38110414,216.57,216.43,1.5818]
[1734382354734,12.38110414,216.57,216.44,2.46]
[1734382354933,12.38110414,216.57,216.45,12.38110414]
[1734382354934,2.46,216.57,216.45,12.38110414]
[1734382355129,5.40917609,216.63,216.51,12.38110414]
[1734382355331,5.40917609,216.63,216.43,1.5818]
[1734382355332,12.38110414,216.65,216.52,2.46]
[1734382355534,12.38110414,216.62,216.53,2.46]
[1734382355740,14.84110414,216.62,216.53,2.46]
[1734382356337,2.3079,216.57,216.53,2.46]
[1734382356728,2.308,216.56,216.53,2.46]
[1734382356928,2.308,216.56,216.5,2.3085]
[1734382357533,2.308,216.56,216.52,2.3084]
[1734382358950,2.308,216.56,216.49,2.46]
[1734382359241,2.308,216.56,216.51,2.3085]
[1734382359442,2.308,216.56,216.49,2.46]
[1734382359633,2.308,216.56,216.52,2.3084]
[1734382360043,14.84110414,216.62,216.52,2.3084]
[1734382360237,14.84110414,216.62,216.49,2.46]
[1734382360438,1.1782,216.7,216.5,12.38110414]
[1734382360638,12.38110414,216.66,216.5,13.93050414]
[1734382360836,12.38110414,216.63,216.54,2.3081]
[1734382361236,2.3076,216.6,216.54,2.3081]
[1734382361439,12.38110414,216.63,216.54,2.3081]
[1734382361641,12.38110414,216.63,216.52,2.3083]
[1734382361933,14.84110414,216.63,216.52,2.3083]
[1734382362139,14.84110414,216.63,216.53,2.3083]
[1734382362734,2.3075,216.6,216.53,2.3083]
[1734382362938,14.84110414,216.63,216.53,2.3083]
[1734382364431,14.84110414,216.63,216.52,5.64934177]
[1734382364642,2.3078,216.58,216.54,2.3082]
[1734382366141,12.38110414,216.67,216.53,12.38110414]
[1734382366438,1.1782,216.7,216.52,5.64934177]
[1734382366439,12.38110414,216.64,216.52,5.64934177]
[1734382366640,2.46,216.63,216.52,5.64934177]
[1734382366942,2.3078,216.58,216.53,2.3083]
[1734382369243,2.3078,216.58,216.54,2.3082]
[1734382370641,2.46,216.63,216.52,5.64934177]
[1734382370642,2.308,216.56,216.52,5.64934177]
[1734382370843,2.46,216.63,216.52,8.10934177]
[1734382371345,2.3078,216.58,216.53,2.3083]
[1734382371645,2.46,216.63,216.53,2.3083]
[1734382372246,2.3079,216.57,216.53,2.3083]
[1734382373541,7.92668433,216.59,216.52,13.5760261]
[1734382374448,2.3081,216.55,216.52,13.5760261]
[1734382374649,7.92668433,216.59,216.52,15.8844261]
[1734382374844,7.92668433,216.59,216.52,10.23508433]
[1734382375044,2.3079,216.57,216.54,7.92668433]
[1734382375244,7.92668433,216.61,216.54,10.23488433]
[1734382375742,2.3077,216.59,216.54,10.23488433]
[1734382376346,2.3077,216.59,216.56,7.92668433]
[1734382376548,7.92668433,216.63,216.56,7.92668433]
[1734382376747,7.92668433,216.65,216.56,7.92668433]
[1734382376947,2.46,216.68,216.58,7.92668433]
[1734382377145,2.46,216.68,216.59,2.3076]
[1734382377146,2.3073,216.63,216.59,2.3076]
[1734382377949,7.92668433,216.66,216.59,2.3076]
[1734382377950,2.3074,216.62,216.59,2.3076]
[1734382378246,2.46,216.68,216.61,2.3074]
[1734382378451,2.3071,216.65,216.61,2.3074]
[1734382379245,2.3071,216.65,216.62,7.92668433]
[1734382379446,2.3069,216.66,216.63,2.3072]
[1734382379848,7.92668433,216.7,216.62,7.92668433]
[1734382380147,2.3068,216.67,216.64,7.92668433]
[1734382381954,2.3068,216.67,216.63,2.3072]
[1734382382953,2.3068,216.67,216.62,2.3073]
[1734382383948,12.37277803,216.71,216.6,2.46]
[1734382384349,12.37277803,216.68,216.57,2.46]
[1734382384549,2.3075,216.61,216.57,2.46]
[1734382385044,14.83277803,216.68,216.55,12.37277803]
[1734382385351,12.37277803,216.65,216.54,2.48]
[1734382385557,12.37277803,216.65,216.53,1.5532]
[1734382386147,2.3074,216.62,216.53,1.5532]
[1734382386457,2.48,216.63,216.53,3.8614]
[1734382386759,2.48,216.63,216.53,1.5532]
[1734382387150,2.48,216.63,216.52,5.49412396]
[1734382387352,2.48,216.63,216.34,51.00734473]
[1734382387353,12.37277803,216.54,216.45,1.5607]
[1734382387550,14.85277803,216.54,216.45,1.5607]
[1734382387961,14.85277803,216.54,216.4,2.48]
[1734382388257,12.37277803,216.51,216.45,5.58309772]
[1734382388454,12.37277803,216.51,216.39,2.48]
[1734382389249,2.48,216.53,216.39,14.85277803]
[1734382389459,2.3087,216.49,216.44,2.3092]
[1734382389655,2.48,216.53,216.41,5.52298174]
[1734382390152,12.37277803,216.52,216.43,2.63589]
[1734382390753,12.37277803,216.52,216.43,0.32659]
[1734382391359,2.3085,216.51,216.45,2.3091]
[1734382391560,2.3085,216.51,216.43,0.32659]
[1734382391854,14.68117803,216.52,216.46,2.309]
[1734382392260,2.3084,216.52,216.46,2.309]
[1734382392860,2.3085,216.51,216.46,2.309]
[1734382393060,2.48,216.53,216.46,2.309]
[1734382393261,2.48,216.57,216.48,2.3088]
[1734382393763,13.90967803,216.58,216.48,2.3088]
[1734382393959,2.3083,216.54,216.48,2.3088]
[1734382394564,2.48,216.57,216.48,2.3088]
[1734382394861,2.3083,216.53,216.48,2.3088]
[1734382395262,2.3084,216.52,216.46,2.309]
[1734382396565,2.3085,216.51,216.45,7.0306]
[1734382397163,2.3085,216.51,216.46,2.309]
[1734382397460,2.3084,216.52,216.45,4.7215]
[1734382398063,2.3084,216.52,216.46,2.309]
[1734382399464,12.37277803,216.55,216.45,7.0306]
[1734382399864,12.37277803,216.55,216.45,5.4043]
[1734382400059,2.3087,216.5,216.45,3.0952]
[1734382400260,12.37277803,216.52,216.45,3.0952]
[1734382400567,12.37277803,216.52,216.41,8.00298174]
[1734382400767,14.85277803,216.52,216.41,8.00298174]
[1734382401169,2.3086,216.5,216.44,2.3092]
[1734382402469,2.3086,216.5,216.41,9.61788174]
[1734382402470,14.85277803,216.55,216.43,12.37277803]
[1734382402667,12.37277803,216.55,216.43,12.37277803]
[1734382402863,2.3083,216.53,216.47,2.3088]
[1734382403169,2.3083,216.53,216.43,12.37277803]
[1734382403372,2.48,216.56,216.46,12.37277803]
[1734382403561,12.37277803,216.61,216.49,12.37277803]
[1734382403764,12.37277803,216.64,216.49,12.37277803]
[1734382403961,2.3076,216.6,216.55,2.308]
[1734382404971,2.3077,216.59,216.52,2.48]
[1734382405366,2.3076,216.6,216.54,2.3081]
[1734382405669,2.3076,216.6,216.52,2.48]
[1734382406968,14.85277803,216.64,216.52,14.85277803]
[1734382407870,14.85277803,216.64,216.56,2.3079]
[1734382407871,2.3074,216.61,216.56,2.3079]
[1734382408774,2.3074,216.61,216.57,2.3078]
[1734382408974,2.3074,216.61,216.52,2.48]
[1734382410170,2.3077,216.59,216.52,2.48]
[1734382410475,12.37277803,216.61,216.5,4.7779]
[1734382410673,12.37277803,216.58,216.5,5.4959]
[1734382411176,12.37277803,216.58,216.44,2.48]
[1734382411384,12.37277803,216.55,216.44,2.48]
[1734382411871,2.3085,216.52,216.47,2.3089]
[1734382412471,14.85277803,216.55,216.47,2.3089]
[1734382412678,2.3085,216.51,216.47,2.3089]
[1734382413774,2.3084,216.52,216.48,2.3088]
[1734382418476,2.3082,216.54,216.49,2.3086]
[1734382418871,2.3082,216.54,216.47,5.50784727]
[1734382419275,2.3081,216.55,216.47,5.50784727]
[1734382419472,2.48,216.62,216.55,2.308]
[1734382419675,2.48,216.62,216.51,14.85277803]
[1734382420474,2.3077,216.59,216.54,2.3081]
[1734382420681,2.48,216.62,216.51,14.85277803]
[1734382420884,2.3081,216.56,216.51,4.7884]
[1734382421284,2.3081,216.56,216.51,2.48]
[1734382421882,14.85277803,216.62,216.51,2.48]
[1734382422181,2.48,216.62,216.52,12.37277803]
[1734382423491,2.3077,216.59,216.55,2.3081]
[1734382423792,2.48,216.62,216.55,2.3081]
[1734382424178,2.48,216.62,216.38,12.37277803]
[1734382424179,12.37277803,216.57,216.38,12.37277803]
[1734382424378,12.37277803,216.59,216.38,12.37277803]
[1734382424379,12.37277803,216.54,216.38,12.37277803]
[1734382424585,2.3086,216.5,216.44,2.3092]
[1734382424977,12.37277803,216.54,216.43,5.55100264]
[1734382425182,2.48,216.56,216.46,2.309]
[1734382425386,2.48,216.56,216.45,2.48]
[1734382425879,2.48,216.56,216.48,2.3088]
[1734382425880,2.3083,216.54,216.48,2.3088]
[1734382428890,3.0379,216.6,216.5,2.3086]
[1734382428891,2.3081,216.55,216.5,2.3086]
[1734382430491,18.4724,216.73,216.47,14.85277803]
[1734382430686,81.71089077,216.64,216.5,12.37277803]
[1734382430886,0.69298286,216.63,216.5,12.37277803]
[1734382431194,2.3078,216.58,216.53,2.3083]
[1734382431385,12.37277803,216.62,216.49,2.48]
[1734382431591,2.3079,216.57,216.51,2.3084]
[1734382432192,12.37277803,216.62,216.51,2.3084]
[1734382432397,2.308,216.56,216.51,2.3084]
[1734382432789,2.308,216.56,216.49,2.48]
[1734382432997,2.308,216.56,216.52,2.3084]
[1734382433395,81.71089077,216.64,216.53,2.3083]
[1734382433595,12.37277803,216.63,216.53,2.3083]
[1734382433796,2.48,216.62,216.53,2.3083]
[1734382434392,2.3079,216.58,216.53,2.3083]
[1734382435194,2.3079,216.57,216.53,2.3083]
[1734382439198,12.37277803,216.62,216.53,2.3083]
[1734382439199,2.3078,216.58,216.53,2.3083]
[1734382439396,12.37277803,216.62,216.53,2.3083]
[1734382440504,2.3079,216.57,216.53,2.3083]
[1734382442298,12.37277803,216.62,216.45,3.0794]
[1734382442299,2.3083,216.53,216.49,2.3087]
[1734382442502,12.37277803,216.56,216.44,0.30677]
[1734382442703,12.37277803,216.56,216.45,2.48]
[1734382443005,2.3083,216.53,216.48,2.3088]
[1734382443201,12.37277803,216.56,216.48,2.3088]
[1734382444308,2.3084,216.53,216.48,2.3088]
[1734382446207,2.3084,216.53,216.48,7.90708304]
[1734382446707,2.3084,216.53,216.49,2.3087]
[1734382447504,2.3084,216.52,216.48,7.90708304]
[1734382448701,2.3084,216.52,216.44,0.30677]
[1734382448702,12.37277803,216.56,216.44,0.30677]
[1734382448906,12.37277803,216.53,216.44,0.30677]
[1734382449100,2.3091,216.45,216.44,0.30677]
[1734382449301,12.37277803,216.5,216.44,0.30677]
[1734382450105,7.9352679,216.48,216.44,0.30677]
[1734382450304,2.309,216.46,216.44,0.30677]
[1734382453416,2.3091,216.45,216.44,0.30677]
[1734382454007,14.89940203,216.51,216.44,0.30677]
[1734382454204,2.309,216.47,216.44,0.30677]
[1734382455002,14.89940203,216.51,216.44,2.61597]
[1734382455003,2.3087,216.49,216.44,2.61597]
[1734382455511,12.39940203,216.51,216.44,2.61597]
[1734382456113,2.3089,216.48,216.44,2.61597]
[1734382456412,12.39940203,216.51,216.44,2.61597]
[1734382456607,2.3087,216.49,216.44,2.61597]
[1734382456807,12.39940203,216.51,216.44,2.61597]
[1734382457213,2.3089,216.48,216.44,2.61597]
[1734382458619,2.3091,216.46,216.44,0.30677]
[1734382459520,2.3091,216.45,216.44,0.30677]
[1734382460217,12.39940203,216.48,216.39,3.0457]
[1734382460413,2.3095,216.42,216.39,5.3555]
[1734382461715,12.39940203,216.48,216.39,5.3555]
[1734382461716,2.3094,216.43,216.39,5.3555]
[1734382464922,2.309,216.47,216.39,3.0457]
[1734382465229,2.5,216.53,216.39,13.91770203]
[1734382465526,14.89940203,216.54,216.45,2.3091]
[1734382465727,12.39940203,216.54,216.45,2.3091]
[1734382466030,2.3086,216.51,216.46,2.309]
[1734382467322,2.3086,216.51,216.42,14.89940203]
[1734382467523,2.3084,216.53,216.42,14.89940203]
[1734382467733,12.39940203,216.57,216.45,12.39940203]
[1734382468234,16.46390203,216.6,216.45,12.39940203]
[1734382468431,16.46390203,216.6,216.46,1.4895]
[1734382468631,14.89940203,216.6,216.47,2.5]
[1734382468830,2.3078,216.58,216.48,12.39940203]
[1734382469329,2.3078,216.58,216.49,1.5796]
[1734382470330,12.39940203,216.63,216.49,1.5796]
[1734382470628,12.39940203,216.66,216.54,12.39940203]
[1734382470824,12.39940203,216.66,216.55,2.5]
[1734382471030,12.39940203,216.66,216.57,2.3078]
[1734382471031,2.3073,216.63,216.57,2.3078]
[1734382472328,2.3071,216.65,216.55,2.5]
[1734382472532,2.3071,216.65,216.55,3.9913]
[1734382472935,2.3071,216.65,216.56,1.5356]
[1734382473432,12.39940203,216.69,216.56,1.5356]
[1734382473632,2.3069,216.67,216.61,2.3074]
[1734382473832,12.39940203,216.69,216.61,2.5]
[1734382474336,2.3072,216.64,216.58,2.3077]
[1734382474532,2.3072,216.64,216.58,4.7877]
[1734382474832,2.3072,216.64,216.59,2.3076]
[1734382475535,2.3069,216.66,216.6,2.3075]
[1734382475735,2.3069,216.66,216.58,2.48]
[1734382475937,12.39940203,216.69,216.58,7.97733422]
[1734382476434,2.3067,216.68,216.62,2.3072]
[1734382476733,12.39940203,216.69,216.63,2.48]
[1734382477034,2.3066,216.69,216.64,2.3071]
[1734382477235,77.71394826,216.74,216.63,2.48]
[1734382477534,2.3062,216.73,216.63,14.87940203]
[1734382477928,12.39940203,216.77,216.63,14.87940203]
[1734382478131,2.3061,216.74,216.69,2.3066]
[1734382478328,2.3061,216.74,216.69,4.7866]
[1734382478931,2.3061,216.74,216.69,2.48]
[1734382480136,2.3062,216.73,216.69,2.48]
[1734382480336,12.39940203,216.77,216.65,1.4729]
[1734382480532,12.39940203,216.74,216.65,1.4729]
[1734382480733,12.39940203,216.74,216.65,3.9529]
[1734382481136,12.39940203,216.74,216.64,3.7795]
[1734382481440,12.39940203,216.74,216.65,2.48]
[1734382482135,12.39940203,216.74,216.65,2.307]
[1734382482536,2.3065,216.71,216.65,2.307]
[1734382483243,2.3063,216.72,216.65,2.307]
[1734382483535,12.39940203,216.74,216.65,2.307]
[1734382483834,2.3065,216.7,216.65,2.307]
[1734382484041,12.39940203,216.74,216.64,2.48]
[1734382484840,12.39940203,216.74,216.63,4.7872]
[1734382485140,2.3067,216.68,216.63,4.7872]
[1734382485736,2.3067,216.68,216.64,2.3071]
[1734382485936,14.87940203,216.71,216.6,2.16683]
[1734382486235,14.87940203,216.71,216.6,0.54953]
[1734382486236,12.39940203,216.68,216.6,0.54953]
[1734382487038,12.39940203,216.65,216.6,0.54953]
[1734382487337,2.3074,216.61,216.6,0.54953]
[1734382487635,12.39940203,216.62,216.46,12.39940203]
[1734382487838,12.39940203,216.62,216.51,2.48]
[1734382488940,2.3078,216.58,216.53,2.3083]
[1734382489337,2.3074,216.62,216.53,5.54528019]
[1734382489535,77.73813162,216.67,216.53,5.54528019]
[1734382490335,12.39940203,216.65,216.53,5.54528019]
[1734382490538,12.39940203,216.62,216.53,5.54528019]
[1734382490743,2.3076,216.6,216.53,10.33348019]
[1734382490936,12.39940203,216.62,216.53,10.33348019]
[1734382491837,2.3078,216.58,216.53,7.85348019]
[1734382493142,2.3078,216.58,216.53,5.54528019]
[1734382494447,12.39940203,216.62,216.5,2.48]
[1734382495247,2.3081,216.55,216.5,2.48]
[1734382495644,2.3081,216.55,216.5,4.7886]
[1734382495845,2.3081,216.55,216.5,10.2528029]
[1734382496445,2.3081,216.55,216.5,7.9442029]
[1734382496644,13.93530203,216.62,216.5,7.9442029]
[1734382496645,2.3082,216.54,216.5,7.9442029]
[1734382497849,13.93530203,216.62,216.5,7.9442029]
[1734382498040,2.6686,216.63,216.5,7.9442029]
[1734382498041,3.9692,216.63,216.5,7.9442029]
[1734382498245,3.9692,216.63,216.53,2.3082]
[1734382498749,2.3076,216.6,216.52,2.3084]
[1734382499043,12.39940203,216.62,216.5,7.9442029]
[1734382499440,2.3081,216.56,216.51,2.3085]
[1734382500248,12.39940203,216.58,216.48,1.5181]
[1734382500451,12.39940203,216.61,216.49,8.06088089]
[1734382500747,12.39940203,216.61,216.49,10.36948089]
[1734382500948,12.39940203,216.61,216.49,2.48]
[1734382501442,2.3081,216.56,216.49,2.48]
[1734382502647,3.9692,216.63,216.49,2.48]
[1734382502845,3.9692,216.63,216.53,2.3083]
[1734382503046,2.3079,216.57,216.53,2.3083]
[1734382503247,2.3079,216.57,216.5,1.5115]
[1734382503549,2.3078,216.58,216.5,1.5115]
[1734382503745,12.39940203,216.61,216.5,1.5115]
[1734382503950,12.39940203,216.61,216.5,3.8201]
[1734382504146,2.3082,216.55,216.5,3.8201]
[1734382504547,12.39940203,216.61,216.5,3.8201]
[1734382504748,2.3083,216.54,216.5,3.8201]
[1734382504949,12.39940203,216.61,216.5,1.5115]
[1734382505249,2.3083,216.53,216.49,2.48]
[1734382505452,12.39940203,216.61,216.49,2.48]
[1734382505644,12.39940203,216.61,216.51,2.3084]
[1734382505645,14.89940203,216.61,216.51,2.3084]
[1734382505841,14.89940203,216.61,216.49,2.48]
[1734382506142,14.89940203,216.61,216.49,4.7887]
[1734382506143,2.3083,216.54,216.49,4.7887]
[1734382507248,2.3084,216.53,216.49,2.48]
[1734382507443,2.3084,216.53,216.48,20.19320483]
[1734382507749,14.89940203,216.61,216.48,7.9850028]
[1734382508142,2.3085,216.52,216.48,7.9850028]
[1734382508750,2.3082,216.55,216.5,2.3086]
[1734382508943,14.89940203,216.61,216.48,20.38440483]
[1734382508944,2.5,216.61,216.48,20.38440483]
[1734382509551,2.3079,216.57,216.48,20.38440483]
[1734382510246,2.5,216.61,216.48,20.38440483]
[1734382510445,2.5,216.61,216.49,4.8087]
[1734382510446,14.89940203,216.61,216.49,4.8087]
[1734382510645,2.3081,216.55,216.49,2.5]
[1734382511044,2.3081,216.55,216.5,2.3085]
[1734382511646,14.89940203,216.61,216.5,2.3085]
[1734382511948,2.3083,216.54,216.49,4.8087]
[1734382512152,2.3083,216.54,216.49,2.3087]
[1734382512652,2.3083,216.54,216.48,5.4850028]
[1734382512653,2.3084,216.53,216.48,7.7938028]
[1734382512851,14.89940203,216.61,216.48,5.4850028]
[1734382513245,2.3085,216.52,216.48,5.4850028]
[1734382513651,12.39940203,216.58,216.43,3.0144]
[1734382513849,12.39940203,216.55,216.43,3.0144]
[1734382514047,12.39940203,216.55,216.38,12.39940203]
[1734382514048,12.39940203,216.52,216.38,12.39940203]
[1734382514353,2.3093,216.44,216.4,2.5]
[1734382514656,2.5,216.5,216.4,2.5]
[1734382514846,2.5,216.5,216.4,8.14872302]
[1734382515650,2.5,216.5,216.4,7.95832302]
[1734382515856,2.5,216.5,216.4,5.64872302]
[1734382516855,12.39940203,216.52,216.41,2.5]
[1734382517556,12.39940203,216.52,216.42,2.3094]
[1734382517955,12.39940203,216.52,216.41,2.5]
[1734382519062,2.3092,216.45,216.41,2.5]
[1734382520858,2.3087,216.49,216.41,4.8096]
[1734382521072,12.39940203,216.52,216.41,4.8096]
[1734382521255,12.39940203,216.52,216.41,2.3096]
[1734382521658,2.3091,216.46,216.41,2.3096]
[1734382521961,14.89940203,216.49,216.39,7.92665259]
[1734382522464,2.3094,216.43,216.39,7.92665259]
[1734382523266,2.3094,216.43,216.39,5.61695259]
[1734382523661,2.3093,216.44,216.39,5.61695259]
[1734382523865,14.89940203,216.49,216.4,2.3096]
[1734382524965,2.3092,216.45,216.4,2.3096]
[1734382525169,14.89940203,216.49,216.4,2.3096]
[1734382525359,2.5,216.49,216.42,2.3095]
[1734382525564,2.5,216.49,216.39,5.61695259]
[1734382526063,2.3089,216.47,216.42,2.3095]
[1734382526471,2.3089,216.47,216.39,5.61695259]
[1734382526663,16.67850203,216.54,216.41,12.39940203]
[1734382526869,12.39940203,216.54,216.41,12.39940203]
[1734382527068,2.3087,216.5,216.45,2.309]
[1734382527270,12.39940203,216.54,216.44,2.5]
[1734382528871,2.94867,216.56,216.44,2.5]
[1734382529173,2.3084,216.53,216.48,2.3087]
[1734382529370,2.94867,216.56,216.44,14.89940203]
[1734382529774,2.3084,216.53,216.44,14.89940203]
[1734382530069,2.94867,216.56,216.44,14.89940203]
[1734382530277,0.44867,216.56,216.44,14.89940203]
[1734382530971,2.3083,216.54,216.47,2.3089]
[1734382531174,2.3083,216.54,216.44,14.89940203]
[1734382531574,2.3083,216.54,216.48,2.3087]
[1734382531977,2.3083,216.54,216.44,14.89940203]
[1734382531978,0.44867,216.56,216.44,14.89940203]
[1734382532178,0.44867,216.56,216.44,2.5]
[1734382532677,2.3086,216.51,216.46,2.309]
[1734382533580,2.5,216.55,216.46,2.309]
[1734382533783,2.3086,216.5,216.46,2.309]
[1734382534085,2.5,216.55,216.44,2.5]
[1734382534403,12.39940203,216.54,216.43,1.6121]
[1734382534982,2.3089,216.48,216.43,3.9214]
[1734382535180,12.39940203,216.54,216.43,1.6121]
[1734382535380,12.39940203,216.54,216.42,5.6055]
[1734382535581,2.309,216.47,216.42,7.9149]
[1734382536180,2.309,216.47,216.43,2.3093]
[1734382536383,12.39940203,216.54,216.43,2.3093]
[1734382536585,12.39940203,216.54,216.42,3.0855]
[1734382536787,12.39940203,216.54,216.45,2.3091]
[1734382537182,12.39940203,216.54,216.42,3.0855]
[1734382538085,2.309,216.47,216.42,5.3949]
[1734382538280,12.39940203,216.51,216.42,5.3949]
[1734382538486,2.309,216.47,216.42,5.3949]
[1734382540298,2.309,216.47,216.42,3.0855]
[1734382540483,2.5,216.55,216.42,3.0855]
[1734382540686,0.44867,216.56,216.44,12.39940203]
[1734382540984,0.44867,216.56,216.42,3.0855]
[1734382540985,0.44867,216.56,216.51,2.3085]
[1734382541175,0.44867,216.56,216.5,2.52]
[1734382541378,0.44867,216.56,216.54,2.3082]
[1734382541681,0.44867,216.56,216.5,2.52]
[1734382541887,0.44867,216.56,216.51,3.2211]
[1734382542079,0.44867,216.56,216.53,2.3082]
[1734382543078,0.44867,216.56,216.54,2.3082]
[1734382544287,0.44867,216.56,216.55,2.3081]
[1734382546780,2.3075,216.61,216.56,2.308]
[1734382548186,2.3076,216.6,216.56,2.308]
[1734382548387,14.91940203,216.65,216.56,2.308]
[1734382548586,12.39940203,216.65,216.55,2.52]
[1734382548791,2.3072,216.63,216.55,2.52]
[1734382549084,12.39940203,216.59,216.51,8.65068193]
[1734382549279,2.3082,216.54,216.51,5.42958193]
[1734382549690,12.39940203,216.56,216.48,1.5998]
[1734382549886,2.3086,216.5,216.45,2.52]
[1734382550189,2.3086,216.5,216.44,2.52]
[1734382550586,2.3085,216.51,216.44,2.52]
[1734382551382,2.3085,216.51,216.46,2.309]
[1734382551591,2.3083,216.54,216.47,5.53893228]
[1734382551791,12.39940203,216.56,216.47,5.53893228]
[1734382552194,2.3083,216.53,216.47,5.53893228]
[1734382553490,2.3083,216.53,216.48,2.3088]
[1734382553983,2.3082,216.54,216.49,2.3087]
[1734382554192,12.39940203,216.59,216.47,17.93833431]
[1734382554588,2.3081,216.55,216.49,2.3086]
[1734382554783,2.3081,216.55,216.5,2.52]
[1734382555193,2.3081,216.55,216.5,4.8286]
[1734382556489,2.308,216.56,216.51,2.3085]
[1734382559294,12.39940203,216.59,216.47,7.84773228]
[1734382559295,2.3084,216.53,216.47,7.84773228]
[1734382559611,12.39940203,216.56,216.47,5.53893228]
[1734382560198,2.3084,216.53,216.48,2.3088]
[1734382560393,12.39940203,216.56,216.47,5.53893228]
[1734382561198,2.3089,216.48,216.43,1.5389]
[1734382561499,12.39940203,216.53,216.43,1.5389]
[1734382561693,2.3086,216.5,216.44,2.3092]
[1734382561894,2.52,216.54,216.45,5.41648983]
[1734382562094,14.91940203,216.59,216.45,17.81589186]
[1734382562298,2.3083,216.53,216.45,17.81589186]
[1734382562998,14.91940203,216.59,216.45,17.81589186]
[1734382563301,2.52,216.59,216.48,12.39940203]
[1734382563501,2.52,216.59,216.49,2.52]
[1734382563795,2.3081,216.56,216.51,2.3085]
[1734382564197,2.3081,216.56,216.49,2.52]
[1734382564198,2.3078,216.58,216.49,2.52]
[1734382564597,12.39940203,216.62,216.49,2.52]
[1734382564801,12.39940203,216.62,216.54,2.3081]
[1734382565100,12.39940203,216.62,216.5,3.0525]
[1734382565402,12.39940203,216.62,216.51,2.56]
[1734382565696,2.3079,216.57,216.52,2.3084]
[1734382565892,12.39940203,216.62,216.52,2.3084]
[1734382566296,12.39940203,216.62,216.51,2.56]
[1734382566600,2.3078,216.58,216.53,2.3083]
[1734382566997,2.3078,216.58,216.54,2.3082]
[1734382567197,2.3078,216.58,216.51,2.56]
[1734382567398,12.39940203,216.62,216.51,2.3085]
[1734382567896,2.3077,216.59,216.51,2.3085]
[1734382568101,12.39940203,216.62,216.51,2.3085]
[1734382569300,2.3081,216.56,216.52,2.3084]
[1734382570196,12.39940203,216.62,216.5,5.6125]
[1734382570398,2.3078,216.58,216.55,2.3081]
[1734382570595,2.56,216.64,216.51,12.39940203]
[1734382570792,13.98730203,216.65,216.51,13.98470203]
[1734382571399,2.3077,216.59,216.55,2.3081]
[1734382572403,2.3077,216.59,216.56,2.308]
[1734382573394,2.3078,216.59,216.54,2.3081]
[1734382573594,2.3078,216.59,216.51,13.98470203]
[1734382573795,12.39940203,216.68,216.54,12.39940203]
[1734382573993,2.3073,216.63,216.55,2.56]
[1734382574195,14.95940203,216.68,216.55,2.56]